[Event "EYCC 2017"]
[Site "Mamaia"]
[Date "2017.09.06"]
[Round "2"]
[White "Tsotsonava, Elene"]
[Black "Zvereva, Margarita"]
[Result "0-1"]
[ECO "B92"]
[WhiteElo "1644"]
[BlackElo "1790"]
[Annotator "NA"]
[PlyCount "149"]
[EventDate "2017.??.??"]
[EventType "swiss"]
[EventCountry "ROU"]
[SourceTitle "playchess.com"]
[Source "ChessBase"]
[SourceQuality "1"]
[TimeControl "40/5400+30:1800+30"]

1. e4 {[%emt 0:00:00]} c5 {[%emt 0:00:06]} 2. Nf3 {[%emt 0:00:00]} d6 {[%emt 0:00:07]} 3. d4 {[%emt 0:00:00]} cxd4 {[%emt 0:00:07]} 4. Nxd4 {[%emt 0:00:00]} Nf6 {[%emt 0:00:08]} 5. Nc3 {[%emt 0:00:00]} a6 {[%emt 0:00:09]} 6. Be2 {[%emt 0:00:16]} e5 {[%emt 0:00:45]} 7. Nb3 {[%emt 0:00:08]} Be7 {[%emt 0:01:18]} 8. Bg5 {[%emt 0:00:26]} Nbd7 {[%emt 0:09:51]} 9. a4 {[%emt 0:02:26]} b6 {[%emt 0:10:34]} 10. O-O {[%emt 0:01:09]} Bb7 {[%emt 0:01:05]} 11. Nd2 {[%emt 0:04:43]} Nc5 {[%emt 0:10:20]} 12. Bxf6 {[%emt 0:02:08]} Bxf6 {[%emt 0:00:10]} 13. Nc4 {[%emt 0:00:28]} Be7 {[%emt 0:06:42]} 14. Nd5 {[%emt 0:12:30]} Nxe4 {[%emt 0:15:28]} 15. Nxe7 {[%emt 0:09:03]} Kxe7 {[%emt 0:06:46]} 16. f4 {[%emt 0:08:53]} b5 {[%emt 0:28:56]} 17. Ne3 {[%emt 0:20:43]} Qb6 {[%emt 0:02:49]} 18. Qd3 {[%emt 0:00:54]} Nc5 {[%emt 0:03:18]} 19. Nf5+ {[%emt 0:07:46]} Kd7 {[%emt 0:00:39]} 20. Qe3 {[%emt 0:01:25]} Nxa4 {[%emt 0:00:31]} 21. Rxa4 {[%emt 0:04:32]} Qxe3+ {[%emt 0:00:08]} 22. Nxe3 {[%emt 0:00:02]} bxa4 {[%emt 0:00:07]} 23. fxe5 {[%emt 0:00:05]} Rhf8 {[%emt 0:01:11]} 24. Bg4+ {[%emt 0:01:15]} Kc7 {[%emt 0:00:30]} 25. exd6+ {[%emt 0:00:30]} Kxd6 {[%emt 0:00:12]} 26. Nf5+ {[%emt 0:00:47]} Kc7 {[%emt 0:00:39]} 27. Nxg7 {[%emt 0:00:32]} Bc8 {[%emt 0:00:38]} 28. Bxc8 {[%emt 0:12:07]} Raxc8 {[%emt 0:00:16]} 29. Rf4 {[%emt 0:01:18]} Kb7 {[%emt 0:00:49]} 30. c3 {[%emt 0:00:56]} a3 {[%emt 0:00:27]} 31. bxa3 {[%emt 0:00:15]} Rxc3 {[%emt 0:00:28]} 32. a4 {[%emt 0:00:29]} Rc2 {[%emt 0:00:31]} 33. Nf5 {[%emt 0:04:43]} Rd8 {[%emt 0:00:34]} 34. Ne3 {[%emt 0:03:09]} Rc7 {[%emt 0:00:27]} 35. Kf2 {[%emt 0:00:24]} Rd2+ 36. Kf3 {[%emt 0:01:01]} Re7 {[%emt 0:01:06]} 37. Nc4 {[%emt 0:00:39]} Rd3+ {[%emt 0:00:30]} 38. Kg4 {[%emt 0:00:12]} Rd5 {[%emt 0:00:30]} 39. Kg3 {[%emt 0:02:03]} Rg5+ {[%emt 0:00:23]} 40. Kf3 {[%emt 0:00:00]} Rd5 {[%emt 0:00:13]} 41. h3 {[%emt 0:00:47]} Red7 {[%emt 0:18:17]} 42. Rf6 {[%emt 0:03:48]} a5 {[%emt 0:11:55]} 43. Rf4 {[%emt 0:09:22]} f5 {[%emt 0:01:33]} 44. Ne3 {[%emt 0:01:30]} Rd3 {[%emt 0:00:31]} 45. Kf2 {[%emt 0:02:17]} R3d4 {[%emt 0:00:23]} 46. Rxf5 {[%emt 0:00:35]} Rxa4 {[%emt 0:00:14]} 47. g4 {[%emt 0:02:38]} Ra2+ {[%emt 0:00:25]} 48. Kf3 {[%emt 0:00:08]} a4 {[%emt 0:00:49]} 49. Ra5 {[%emt 0:02:21]} Kb8 {[%emt 0:00:45]} 50. h4 {[%emt 0:00:31]} a3 {[%emt 0:00:28]} 51. h5 {[%emt 0:01:22]} Ra7 {[%emt 0:00:26]} 52. Rxa7 {[%emt 0:04:53]} Kxa7 {[%emt 0:00:01]} 53. Nc4 {[%emt 0:00:04]} Rf2+ {[%emt 0:01:01]} 54. Kxf2 {[%emt 0:00:24]} a2 {[%emt 0:00:02]} 55. Kf3 {[%emt 0:00:16]} a1=Q {[%emt 0:00:05]} 56. Ne3 {[%emt 0:00:07]} Qf6+ {[%emt 0:00:30]} 57. Nf5 {[%emt 0:00:13]} Qg5 {[%emt 0:00:49]} 58. Ng3 {[%emt 0:00:05]} Kb7 {[%emt 0:00:40]} 59. Ne4 {[%emt 0:00:04]} Qe5 {[%emt 0:00:30]} 60. Nf2 {[%emt 0:02:27]} Kc6 {[%emt 0:00:34]} 61. Nd3 {[%emt 0:00:05]} Qf6+ {[%emt 0:00:43]} 62. Ke4 {[%emt 0:00:26]} Kd7 {[%emt 0:00:32]} 63. Nf4 {[%emt 0:00:08]} Qg5 {[%emt 0:00:31]} 64. Kf3 {[%emt 0:00:05]} Qh4 {[%emt 0:00:35]} 65. Ne2 {[%emt 0:00:50]} Qh1+ {[%emt 0:00:19]} 66. Kg3 {[%emt 0:01:11]} Qe1+ {[%emt 0:00:20]} 67. Kf3 {[%emt 0:00:07]} Qf1+ {[%emt 0:00:11]} 68. Ke3 {[%emt 0:00:05]} Qg2 {[%emt 0:00:17]} 69. Nf4 {[%emt 0:00:47]} Qg3+ {[%emt 0:00:22]} 70. Ke4 {[%emt 0:00:07]} Qxg4 {[%emt 0:00:04]} 71. Ke5 {[%emt 0:00:15]} Qg5+ {[%emt 0:00:19]} 72. Ke4 {[%emt 0:00:05]} Kd6 {[%emt 0:01:05]} 73. Kf3 {[%emt 0:00:58]} Qf5 {[%emt 0:00:51]} 74. Ke3 {[%emt 0:00:13]} h6 {[%emt 0:00:36]} 75. Kd4 {Ke5+} 0-1

[Event "EYCC 2017"]
[Site "Mamaia"]
[Date "2017.09.06"]
[Round "2"]
[White "Veremiuk, Veronika"]
[Black "Vlasova, Olesia"]
[Result "0-1"]
[ECO "E81"]
[WhiteElo "1609"]
[BlackElo "1341"]
[Annotator "NA"]
[PlyCount "84"]
[EventDate "2017.??.??"]
[EventType "swiss"]
[EventCountry "ROU"]
[SourceTitle "playchess.com"]
[Source "ChessBase"]
[SourceQuality "1"]
[TimeControl "40/5400+30:1800+30"]

1. d4 {[%emt 0:00:00]} Nf6 {[%emt 0:00:11]} 2. c4 {[%emt 0:00:00]} g6 {[%emt 0:00:07]} 3. Nc3 {[%emt 0:01:09]} Bg7 {[%emt 0:00:10]} 4. e4 {[%emt 0:01:17]} d6 {[%emt 0:00:10]} 5. f3 {[%emt 0:00:39]} O-O {[%emt 0:00:16]} 6. Be3 {[%emt 0:00:08]} Nfd7 {[%emt 0:00:18]} 7. Qd2 {[%emt 0:01:46]} c5 {[%emt 0:00:20]} 8. Nge2 {[%emt 0:07:13]} Nc6 {[%emt 0:01:19]} 9. O-O-O {[%emt 0:11:03]} Qa5 {[%emt 0:02:05]} 10. f4 {[%emt 0:07:08]} a6 {[%emt 0:00:47]} 11. d5 {[%emt 0:00:30]} Ncb8 {[%emt 0:03:50]} 12. h4 {[%emt 0:16:13]} b5 {[%emt 0:00:33]} 13. cxb5 {[%emt 0:17:26]} axb5 {[%emt 0:00:12]} 14. a3 {[%emt 0:03:41]} b4 {[%emt 0:02:20]} 15. Nb1 {[%emt 0:01:07]} Nb6 {[%emt 0:08:30]} 16. axb4 {[%emt 0:04:10]} cxb4 {[%emt 0:03:28]} 17. Nd4 {[%emt 0:06:46]} Bg4 {[%emt 0:01:34]} 18. Nc2 {[%emt 0:05:44]} Bxd1 {[%emt 0:01:30]} 19. Kxd1 {[%emt 0:01:48]} Na6 {[%emt 0:11:30]} 20. Bxa6 {[%emt 0:01:49]} Qxa6 {[%emt 0:00:46]} 21. Nxb4 {[%emt 0:02:03]} Qa1 {[%emt 0:00:59]} 22. Bxb6 {[%emt 0:03:26]} Qxb1+ {[%emt 0:00:29]} 23. Qc1 {[%emt 0:01:12]} Qxc1+ {[%emt 0:00:10]} 24. Kxc1 {[%emt 0:00:11]} Ra1+ {[%emt 0:00:07]} 25. Kc2 {[%emt 0:00:07]} Rxh1 {[%emt 0:00:08]} 26. Nc6 {[%emt 0:00:09]} Rc8 {[%emt 0:00:32]} 27. Kb3 {[%emt 0:00:18]} Bf8 {[%emt 0:00:47]} 28. Bd8 {[%emt 0:00:48]} Rc1 {[%emt 0:00:57]} 29. Bxe7 {[%emt 0:00:34]} R1xc6 {[%emt 0:00:24]} 30. dxc6 {[%emt 0:00:43]} Bxe7 {[%emt 0:00:05]} 31. Kb4 {[%emt 0:00:18]} Rxc6 {[%emt 0:00:13]} 32. Kb5 {[%emt 0:00:10]} Rc5+ {[%emt 0:00:10]} 33. Ka4 {[%emt 0:00:06]} d5 {[%emt 0:00:10]} 34. exd5 {[%emt 0:00:05]} Rxd5 {[%emt 0:00:05]} 35. b4 {[%emt 0:00:09]} Rd4 {[%emt 0:00:05]} 36. Ka5 {[%emt 0:00:09]} Rxb4 {[%emt 0:00:14]} 37. Ka6 {[%emt 0:00:06]} Kf8 {[%emt 0:00:23]} 38. Ka7 {[%emt 0:00:09]} Ke8 {[%emt 0:00:07]} 39. Ka8 {[%emt 0:00:13]} Kd7 {[%emt 0:00:07]} 40. Ka7 {[%emt 0:00:00]} Kc6 {[%emt 0:00:27]} 41. Ka8 {[%emt 0:00:19]} Kc7 {[%emt 0:00:11]} 42. Ka7 {[%emt 0:00:04]} Ra4# {[%emt 0:00:40]} 0-1

[Event "EYCC 2017"]
[Site "Mamaia"]
[Date "2017.09.06"]
[Round "2"]
[White "Dias, Savin"]
[Black "Milikow, Elie"]
[Result "0-1"]
[ECO "B30"]
[WhiteElo "1602"]
[BlackElo "1977"]
[Annotator "NA"]
[PlyCount "68"]
[EventDate "2017.??.??"]
[EventType "swiss"]
[EventCountry "ROU"]
[SourceTitle "playchess.com"]
[Source "ChessBase"]
[SourceQuality "1"]
[TimeControl "40/5400+30:1800+30"]

1. e4 {[%emt 0:00:00]} c5 {[%emt 0:00:11]} 2. Nf3 {[%emt 0:00:00]} Nc6 {[%emt 0:00:05]} 3. Bb5 {[%emt 0:00:00]} a6 {[%emt 0:01:15]} 4. Bxc6 {[%emt 0:00:16]} bxc6 {[%emt 0:00:32]} 5. c3 {[%emt 0:00:35]} g6 {[%emt 0:01:06]} 6. O-O {[%emt 0:00:23]} Bg7 $14 {[%emt 0:00:42]} 7. d4 {[%emt 0:00:10]} cxd4 {[%emt 0:00:56]} 8. cxd4 {[%emt 0:00:13]} Nf6 {[%emt 0:02:28]} 9. Re1 {[%emt 0:00:33]} O-O {[%emt 0:01:06]} 10. Nc3 {[%emt 0:00:12]} d6 {[%emt 0:04:07]} 11. h3 {[%emt 0:01:37]} Nd7 {[%emt 0:01:50]} 12. Be3 {[%emt 0:01:58]} Rb8 {[%emt 0:02:11]} 13. Qd2 {[%emt 0:00:57]} e5 {[%emt 0:02:15]} 14. Red1 {[%emt 0:03:07]} Nb6 {[%emt 0:04:23]} 15. b3 {[%emt 0:00:54]} Nd7 {[%emt 0:05:50]} 16. Rac1 {[%emt 0:01:56]} f5 {[%emt 0:02:49]} 17. dxe5 {[%emt 0:02:45]} dxe5 {[%emt 0:01:40]} 18. exf5 {[%emt 0:01:42]} gxf5 {[%emt 0:00:40]} 19. Na4 {[%emt 0:00:52]} Qc7 {[%emt 0:07:04]} 20. Qd6 {[%emt 0:02:26]} Qxd6 {[%emt 0:00:55]} 21. Rxd6 {[%emt 0:00:23]} e4 {[%emt 0:00:41]} 22. Ng5 {[%emt 0:08:06]} Ne5 {[%emt 0:02:15]} 23. Bd4 {[%emt 0:03:03]} Rb4 {[%emt 0:12:37]} 24. Bxe5 {[%emt 0:01:30]} Bxe5 {[%emt 0:00:13]} 25. Rdxc6 {[%emt 0:01:02]} Bd7 {[%emt 0:08:00]} 26. R6c4 {[%emt 0:06:24]} Rxc4 {[%emt 0:01:16]} 27. Rxc4 {[%emt 0:00:21]} Rd8 {[%emt 0:06:39]} 28. h4 {[%emt 0:02:11]} Bxa4 {[%emt 0:00:14]} 29. f4 {[%emt 0:02:23]} Bxf4 {[%emt 0:06:42]} 30. Rxa4 {[%emt 0:00:48]} Rd1+ {[%emt 0:00:11]} 31. Kf2 {[%emt 0:00:24]} e3+ {[%emt 0:00:24]} 32. Ke2 {[%emt 0:04:23]} Rd2+ {[%emt 0:00:06]} 33. Kf1 {[%emt 0:00:42]} Bg3 {[%emt 0:00:06]} 34. Nf3 {[%emt 0:04:30]} e2+ {[%emt 0:00:06]} 0-1

[Event "EYCC 2017"]
[Site "Mamaia"]
[Date "2017.09.06"]
[Round "2"]
[White "Miron, Iurii"]
[Black "Maurizzi, Marc Andria"]
[Result "0-1"]
[ECO "A62"]
[WhiteElo "1594"]
[BlackElo "1947"]
[Annotator "NA"]
[PlyCount "82"]
[EventDate "2017.??.??"]
[EventType "swiss"]
[EventCountry "ROU"]
[SourceTitle "playchess.com"]
[Source "ChessBase"]
[SourceQuality "1"]
[TimeControl "40/5400+30:1800+30"]

1. d4 {[%emt 0:00:00]} Nf6 {[%emt 0:00:08]} 2. c4 {[%emt 0:00:00]} e6 {[%emt 0:00:04]} 3. Nf3 {[%emt 0:00:00]} c5 {[%emt 0:00:05]} 4. d5 {[%emt 0:00:00]} exd5 {[%emt 0:00:19]} 5. cxd5 {[%emt 0:00:00]} d6 {[%emt 0:00:09]} 6. Nc3 {[%emt 0:00:00]} g6 {[%emt 0:00:10]} 7. g3 {[%emt 0:00:02]} Bg7 {[%emt 0:00:35]} 8. Bg2 {[%emt 0:00:13]} O-O {[%emt 0:00:12]} 9. O-O {[%emt 0:00:07]} a6 {[%emt 0:00:30]} 10. a4 {[%emt 0:00:02]} Re8 {[%emt 0:01:46]} 11. Re1 {[%emt 0:08:48]} Bg4 {[%emt 0:04:02]} 12. Nd2 {[%emt 0:01:10]} Bc8 {[%emt 0:06:29]} 13. Nc4 {[%emt 0:00:43]} Qc7 {[%emt 0:00:25]} 14. Bf4 {[%emt 0:01:40]} Bf8 {[%emt 0:00:50]} 15. e4 {[%emt 0:01:25]} Nh5 {[%emt 0:03:42]} 16. Bd2 {[%emt 0:02:34]} Nd7 {[%emt 0:01:40]} 17. f4 {[%emt 0:01:48]} Bg7 {[%emt 0:02:56]} 18. g4 {[%emt 0:15:10]} Bd4+ {[%emt 0:02:06]} 19. Kh1 {[%emt 0:00:22]} Nhf6 {[%emt 0:00:19]} 20. g5 {[%emt 0:03:42]} Nb6 {[%emt 0:07:33]} 21. Nxb6 {[%emt 0:00:54]} Ng4 {[%emt 0:00:05]} 22. Rf1 {[%emt 0:01:32]} Qxb6 {[%emt 0:00:33]} 23. Qe2 {[%emt 0:01:09]} h5 {[%emt 0:10:18]} 24. h3 {[%emt 0:03:08]} Kg7 {[%emt 0:02:13]} 25. Bf3 {[%emt 0:06:13]} Rh8 {[%emt 0:01:09]} 26. Kg2 {[%emt 0:01:00]} Rh7 {[%emt 0:03:16]} 27. hxg4 {[%emt 0:06:51]} hxg4 {[%emt 0:01:46]} 28. Bxg4 {[%emt 0:01:58]} Bxg4 29. Qxg4 {[%emt 0:00:02]} Rah8 {[%emt 0:00:18]} 30. Rh1 {[%emt 0:00:13]} Rxh1 {[%emt 0:00:08]} 31. Rxh1 {[%emt 0:00:14]} Rxh1 {[%emt 0:00:42]} 32. Kxh1 {[%emt 0:00:02]} Qxb2 {[%emt 0:00:20]} 33. f5 {[%emt 0:07:58]} gxf5 {[%emt 0:01:31]} 34. exf5 {[%emt 0:00:28]} Qxd2 {[%emt 0:00:26]} 35. f6+ {[%emt 0:00:16]} Kg6 {[%emt 0:00:11]} 36. Ne4 {[%emt 0:09:33]} Qa2 {[%emt 0:09:07]} 37. Ng3 {[%emt 0:17:31]} Qxd5+ {[%emt 0:00:43]} 38. Kh2 {[%emt 0:00:11]} Qxg5 {[%emt 0:00:33]} 39. Qe4+ {[%emt 0:00:22]} Kxf6 {[%emt 0:00:19]} 40. Qf3+ {[%emt 0:00:00]} Ke6 {[%emt 0:00:58]} 41. Qe4+ {[%emt 0:01:40]} Be5 {[%emt 0:00:14]} 0-1

[Event "EYCC 2017"]
[Site "Mamaia"]
[Date "2017.09.06"]
[Round "2"]
[White "Gasimova, Samra"]
[Black "Putar, Lara"]
[Result "1-0"]
[ECO "D37"]
[WhiteElo "1578"]
[BlackElo "1328"]
[Annotator "NA"]
[PlyCount "87"]
[EventDate "2017.??.??"]
[EventType "swiss"]
[EventCountry "ROU"]
[SourceTitle "playchess.com"]
[Source "ChessBase"]
[SourceQuality "1"]
[TimeControl "40/5400+30:1800+30"]

1. d4 {[%emt 0:00:00]} Nf6 {[%emt 0:00:15]} 2. Nf3 {[%emt 0:00:00]} e6 {[%emt 0:00:12]} 3. c4 {[%emt 0:00:00]} d5 {[%emt 0:00:32]} 4. Nc3 {[%emt 0:00:42]} Be7 {[%emt 0:00:42]} 5. Bg5 {[%emt 0:00:15]} h6 {[%emt 0:00:25]} 6. Bf4 {[%emt 0:00:52]} O-O {[%emt 0:00:40]} 7. e3 {[%emt 0:00:14]} b6 {[%emt 0:00:25]} 8. cxd5 {[%emt 0:00:05]} exd5 {[%emt 0:01:15]} 9. Bd3 {[%emt 0:01:26]} Bb7 {[%emt 0:01:32]} 10. O-O {[%emt 0:02:46]} Nbd7 {[%emt 0:00:55]} 11. Rc1 {[%emt 0:00:21]} Rc8 {[%emt 0:01:33]} 12. Qe2 {[%emt 0:01:25]} Re8 {[%emt 0:01:55]} 13. Ba6 {[%emt 0:10:12]} Bxa6 {[%emt 0:04:52]} 14. Qxa6 {[%emt 0:00:32]} Ra8 {[%emt 0:01:37]} 15. Nb5 {[%emt 0:02:29]} Rc8 {[%emt 0:15:51]} 16. Bxc7 {[%emt 0:01:30]} Rxc7 {[%emt 0:01:30]} 17. Nxc7 {[%emt 0:00:42]} Rf8 {[%emt 0:00:36]} 18. Nb5 {[%emt 0:00:29]} Ne4 {[%emt 0:03:44]} 19. Nc3 {[%emt 0:00:58]} Qa8 {[%emt 0:00:42]} 20. Qb5 {[%emt 0:01:00]} Ndf6 {[%emt 0:00:24]} 21. Nxe4 {[%emt 0:00:20]} Nxe4 {[%emt 0:01:07]} 22. Qc6 {[%emt 0:00:44]} Qxc6 {[%emt 0:03:20]} 23. Rxc6 {[%emt 0:00:06]} Bd6 {[%emt 0:00:13]} 24. Rfc1 {[%emt 0:00:48]} f5 {[%emt 0:03:05]} 25. Rc8 {[%emt 0:00:12]} Rxc8 {[%emt 0:00:16]} 26. Rxc8+ {[%emt 0:00:08]} Kf7 {[%emt 0:00:12]} 27. Ra8 {[%emt 0:00:18]} a5 {[%emt 0:00:29]} 28. Ra6 {[%emt 0:00:06]} g5 {[%emt 0:00:42]} 29. Rxb6 {[%emt 0:00:20]} Ke7 {[%emt 0:00:37]} 30. Ne5 {[%emt 0:00:34]} Kf8 {[%emt 0:05:53]} 31. f3 {[%emt 0:00:59]} Bxe5 {[%emt 0:00:25]} 32. fxe4 {[%emt 0:00:12]} Bg7 {[%emt 0:01:46]} 33. exd5 {[%emt 0:00:19]} Ke7 {[%emt 0:00:37]} 34. d6+ {[%emt 0:00:25]} Kd8 {[%emt 0:00:21]} 35. Rb8+ {[%emt 0:00:20]} Kd7 {[%emt 0:01:42]} 36. Rb7+ {[%emt 0:00:08]} Ke6 {[%emt 0:00:49]} 37. Rxg7 {[%emt 0:00:10]} Kxd6 {[%emt 0:00:49]} 38. Ra7 {[%emt 0:00:14]} Kd5 {[%emt 0:00:18]} 39. Rxa5+ {[%emt 0:00:04]} Ke4 {[%emt 0:00:09]} 40. Re5+ {[%emt 0:00:00]} Kd3 {[%emt 0:00:11]} 41. d5 {[%emt 0:00:15]} g4 {[%emt 0:00:54]} 42. d6 {[%emt 0:00:04]} g3 {[%emt 0:00:51]} 43. d7 {[%emt 0:00:07]} gxh2+ {[%emt 0:00:04]} 44. Kxh2 {[%emt 0:00:08]} 1-0

[Event "EYCC 2017"]
[Site "Mamaia"]
[Date "2017.09.06"]
[Round "2"]
[White "Poliato, Irina"]
[Black "Tokarz, Izabela"]
[Result "0-1"]
[ECO "D31"]
[WhiteElo "1569"]
[BlackElo "1324"]
[Annotator "NA"]
[PlyCount "92"]
[EventDate "2017.??.??"]
[EventType "swiss"]
[EventCountry "ROU"]
[SourceTitle "playchess.com"]
[Source "ChessBase"]
[SourceQuality "1"]
[TimeControl "40/5400+30:1800+30"]

1. d4 {[%emt 0:00:00]} d5 {[%emt 0:00:08]} 2. c4 {[%emt 0:00:00]} e6 {[%emt 0:00:16]} 3. Nc3 {[%emt 0:00:00]} f5 {[%emt 0:00:26]} 4. Bf4 {[%emt 0:01:01]} c6 {[%emt 0:01:40]} 5. e3 {[%emt 0:00:36]} Nf6 {[%emt 0:00:55]} 6. Rc1 {[%emt 0:03:55]} Bd6 {[%emt 0:01:36]} 7. Bxd6 {[%emt 0:05:54]} Qxd6 {[%emt 0:00:12]} 8. cxd5 {[%emt 0:01:16]} exd5 {[%emt 0:02:30]} 9. Bd3 {[%emt 0:01:48]} O-O {[%emt 0:01:10]} 10. Nge2 {[%emt 0:04:07]} Qe7 {[%emt 0:11:00]} 11. Qc2 {[%emt 0:05:08]} Ne4 {[%emt 0:02:14]} 12. Bxe4 {[%emt 0:02:50]} fxe4 {[%emt 0:00:11]} 13. Nf4 {[%emt 0:03:07]} Nd7 {[%emt 0:04:31]} 14. h3 {[%emt 0:07:34]} Nf6 {[%emt 0:03:09]} 15. Kd2 {[%emt 0:09:00]} Qe8 {[%emt 0:02:21]} 16. g4 {[%emt 0:00:54]} g5 {[%emt 0:16:44]} 17. Nfe2 {[%emt 0:01:33]} Nd7 {[%emt 0:03:44]} 18. Rh2 {[%emt 0:03:09]} Nb6 {[%emt 0:02:41]} 19. b3 {[%emt 0:01:15]} Rf3 {[%emt 0:04:14]} 20. Rg1 {[%emt 0:01:09]} Rf6 {[%emt 0:03:33]} 21. Ke1 {[%emt 0:13:33]} Be6 {[%emt 0:01:52]} 22. h4 {[%emt 0:01:17]} gxh4 {[%emt 0:01:13]} 23. Rxh4 {[%emt 0:00:16]} Qe7 {[%emt 0:04:25]} 24. Rgh1 {[%emt 0:04:06]} Rf7 {[%emt 0:02:51]} 25. Nf4 {[%emt 0:06:04]} Rg7 {[%emt 0:03:06]} 26. Qe2 {[%emt 0:04:44]} Bd7 {[%emt 0:01:48]} 27. Nh5 {[%emt 0:05:42]} Rf7 {[%emt 0:01:31]} 28. Qf1 {[%emt 0:00:54]} Raf8 {[%emt 0:01:01]} 29. Nf4 {[%emt 0:00:38]} Rg7 {[%emt 0:03:50]} 30. Qg2 {[%emt 0:01:15]} Qa3 {[%emt 0:01:54]} 31. g5 {[%emt 0:02:44]} Qb2 {[%emt 0:06:50]} 32. Nd1 {[%emt 0:01:12]} Qxa2 {[%emt 0:02:43]} 33. Ne2 {[%emt 0:01:55]} Qxb3 {[%emt 0:01:19]} 34. Rh6 {[%emt 0:03:12]} Qc2 {[%emt 0:02:00]} 35. Rxh7 Rxh7 {[%emt 0:01:48]} 36. Rxh7 {[%emt 0:01:48]} Kxh7 {[%emt 0:00:14]} 37. Qh2+ {[%emt 0:00:05]} Kg7 {[%emt 0:02:16]} 38. Qh6+ {[%emt 0:01:04]} Kf7 {[%emt 0:00:21]} 39. Nf4 {[%emt 0:01:06]} Bg4 {[%emt 0:01:33]} 40. Qf6+ {[%emt 0:00:00]} Ke8 {[%emt 0:01:07]} 41. f3 Rxf6 42. fxg4 {[%emt 0:13:49]} Rxf4 {[%emt 0:00:39]} 43. exf4 {[%emt 0:00:23]} Nc4 {[%emt 0:00:11]} 44. g6 {[%emt 0:00:42]} Qd2+ {[%emt 0:00:10]} 45. Kf1 {[%emt 0:00:07]} Qxd1+ {[%emt 0:00:11]} 46. Kg2 {[%emt 0:00:22]} Qxg4+ 0-1

[Event "EYCC 2017"]
[Site "Mamaia"]
[Date "2017.09.06"]
[Round "2"]
[White "Smietanska, Wiktoria"]
[Black "Abbasova, Zarifa"]
[Result "1-0"]
[ECO "C42"]
[WhiteElo "1446"]
[BlackElo "1083"]
[Annotator "NA"]
[PlyCount "141"]
[EventDate "2017.??.??"]
[EventType "swiss"]
[EventCountry "ROU"]
[SourceTitle "playchess.com"]
[Source "ChessBase"]
[SourceQuality "1"]
[TimeControl "40/5400+30:1800+30"]

1. e4 {[%emt 0:00:00]} e5 {[%emt 0:00:08]} 2. Nf3 {[%emt 0:00:00]} Nf6 {[%emt 0:00:08]} 3. Nxe5 {[%emt 0:00:00]} d6 {[%emt 0:00:04]} 4. Nf3 {[%emt 0:00:00]} Nxe4 {[%emt 0:00:07]} 5. Qe2 {[%emt 0:01:11]} Qe7 {[%emt 0:00:06]} 6. d3 {[%emt 0:00:09]} Nf6 {[%emt 0:00:05]} 7. Bg5 {[%emt 0:00:57]} Qxe2+ {[%emt 0:01:04]} 8. Bxe2 {[%emt 0:01:34]} Be7 {[%emt 0:00:12]} 9. Nc3 {[%emt 0:04:54]} O-O {[%emt 0:00:35]} 10. O-O {[%emt 0:06:52]} h6 {[%emt 0:00:28]} 11. Be3 {[%emt 0:14:02]} Nc6 {[%emt 0:02:02]} 12. h3 {[%emt 0:06:09]} Bf5 {[%emt 0:00:43]} 13. Nd4 {[%emt 0:03:21]} Nxd4 {[%emt 0:00:47]} 14. Bxd4 {[%emt 0:00:16]} c5 {[%emt 0:00:24]} 15. Be3 {[%emt 0:01:31]} d5 {[%emt 0:03:35]} 16. Bd2 {[%emt 0:06:24]} d4 {[%emt 0:03:04]} 17. Nd1 {[%emt 0:03:47]} b6 {[%emt 0:03:23]} 18. Bf3 {[%emt 0:01:18]} Rad8 {[%emt 0:03:28]} 19. Bf4 {[%emt 0:01:39]} Bd6 {[%emt 0:03:23]} 20. Bxd6 {[%emt 0:01:59]} Rxd6 {[%emt 0:00:19]} 21. b3 {[%emt 0:03:21]} Re8 {[%emt 0:02:05]} 22. Nb2 {[%emt 0:01:31]} Rde6 {[%emt 0:03:36]} 23. Rfd1 {[%emt 0:10:57]} g5 {[%emt 0:05:15]} 24. g4 {[%emt 0:02:07]} Bg6 {[%emt 0:00:31]} 25. Kf1 {[%emt 0:03:28]} h5 {[%emt 0:01:33]} 26. Re1 {[%emt 0:02:25]} Kf8 {[%emt 0:02:34]} 27. Nc4 {[%emt 0:08:02]} b5 {[%emt 0:04:19]} 28. Nd2 {[%emt 0:00:58]} hxg4 {[%emt 0:03:19]} 29. hxg4 {[%emt 0:00:33]} Rxe1+ {[%emt 0:02:02]} 30. Rxe1 {[%emt 0:00:07]} Rxe1+ {[%emt 0:00:19]} 31. Kxe1 {[%emt 0:00:05]} Ke7 {[%emt 0:01:02]} 32. Bc6 {[%emt 0:02:43]} b4 {[%emt 0:02:16]} 33. f3 {[%emt 0:00:28]} Kd6 {[%emt 0:00:22]} 34. Bb5 {[%emt 0:01:11]} Nd5 {[%emt 0:01:48]} 35. Nc4+ {[%emt 0:01:37]} Ke7 {[%emt 0:04:02]} 36. a3 {[%emt 0:00:44]} Ne3 {[%emt 0:02:37]} 37. a4 {[%emt 0:03:21]} Nxc2+ {[%emt 0:01:40]} 38. Kd2 {[%emt 0:00:12]} Na1 {[%emt 0:04:28]} 39. Na5 {[%emt 0:00:00]} Kd6 {[%emt 0:00:00]} 40. Kc1 {[%emt 0:00:00]} Kc7 {[%emt 0:06:38]} 41. Kb2 {[%emt 0:03:11]} a6 {[%emt 0:00:26]} 42. Be8 {[%emt 0:02:42]} Nxb3 {[%emt 0:03:36]} 43. Nxb3 {[%emt 0:01:05]} Bxd3 {[%emt 0:01:58]} 44. Nxc5 {[%emt 0:00:33]} Bc4 {[%emt 0:00:59]} 45. Ne4 {[%emt 0:05:42]} d3 {[%emt 0:05:17]} 46. Nxg5 {[%emt 0:09:55]} b3 {[%emt 0:02:10]} 47. Kc3 {[%emt 0:03:50]} f6 {[%emt 0:05:12]} 48. Ne4 {[%emt 0:00:21]} Kd8 {[%emt 0:01:37]} 49. Kxc4 {[%emt 0:01:19]} b2 {[%emt 0:00:32]} 50. Nd2 {[%emt 0:00:13]} Kxe8 {[%emt 0:00:09]} 51. Kxd3 {[%emt 0:00:12]} Ke7 {[%emt 0:00:27]} 52. Kc2 {[%emt 0:00:08]} Ke6 {[%emt 0:00:08]} 53. Kxb2 {[%emt 0:00:20]} Ke5 {[%emt 0:00:03]} 54. Kc3 {[%emt 0:00:21]} Kf4 {[%emt 0:00:18]} 55. Kd4 {[%emt 0:00:30]} a5 {[%emt 0:00:16]} 56. Nc4 {[%emt 0:03:10]} Kxf3 {[%emt 0:01:50]} 57. Nxa5 {[%emt 0:00:09]} Kxg4 {[%emt 0:00:02]} 58. Nc4 {[%emt 0:00:39]} f5 {[%emt 0:00:06]} 59. Ne3+ {[%emt 0:00:27]} Kf4 60. Nxf5 {[%emt 0:00:26]} Kxf5 {[%emt 0:00:41]} 61. a5 {[%emt 0:00:26]} Ke6 {[%emt 0:00:06]} 62. a6 {[%emt 0:00:30]} Kd6 63. a7 Ke6 {[%emt 0:00:08]} 64. a8=Q {[%emt 0:00:20]} Kd6 {[%emt 0:00:04]} 65. Qa6+ {[%emt 0:00:06]} Ke7 {[%emt 0:00:08]} 66. Ke5 {[%emt 0:00:06]} Kd7 {[%emt 0:00:08]} 67. Qd6+ {[%emt 0:00:40]} Kc8 {[%emt 0:00:07]} 68. Qe7 {[%emt 0:00:05]} Kb8 {[%emt 0:00:06]} 69. Kd6 {[%emt 0:00:04]} Ka8 70. Kc6 {[%emt 0:00:05]} Kb8 {[%emt 0:00:17]} 71. Qb7# {[%emt 0:00:02]} 1-0

[Event "EYCC 2017"]
[Site "Mamaia"]
[Date "2017.09.06"]
[Round "2"]
[White "Zubkovskaya, Ekaterina"]
[Black "Toth, Timea"]
[Result "1/2-1/2"]
[ECO "B24"]
[WhiteElo "1399"]
[BlackElo "1964"]
[Annotator "NA"]
[PlyCount "65"]
[EventDate "2017.??.??"]
[EventType "swiss"]
[EventCountry "ROU"]
[SourceTitle "playchess.com"]
[Source "ChessBase"]
[SourceQuality "1"]
[TimeControl "40/5400+30:1800+30"]

1. e4 c5 2. Nc3 Nc6 3. Bb5 g6 4. Nf3 Bg7 5. O-O e6 6. Bxc6 bxc6 7. d3 h6 8. d4 Ba6 9. Re1 d6 10. d5 Ne7 11. dxc6 Nxc6 12. Nd2 O-O 13. f4 Bd4+ 14. Kh1 Bf2 15. b3 Bxe1 16. Qxe1 Qf6 17. Nf3 Nd4 18. Qd2 Nxf3 19. gxf3 c4 20. Bb2 Qe7 21. Rg1 Qh4 22. f5 exf5 23. exf5 Qh3 24. Qf2 Bb7 25. Ne4 Bxe4 26. fxe4 c3 27. Bc1 g5 28. Qe2 f6 29. Rg3 Qh4 30. Rg4 Qh3 31. Rg3 Qh4 32. Rg4 Qh3 33. Rg3 1/2-1/2